bitfinex-derivatives/quotes_BTCF0:USTF0_20250903
["timestamp","ask_amount","ask_price","bid_price","bid_amount"]
[1756917467911,1.27338182,112220.0,112210.0,0.82652]
[1756917468131,1.19340281,112220.0,112210.0,0.80622744]
[1756917468412,0.05436,112210.0,112200.0,0.0001]
[1756917468614,0.61858928,112210.0,112200.0,0.82676]
[1756917469417,0.61858928,112210.0,112190.0,2.41450977]
[1756917469611,0.13431023,112200.0,112190.0,2.41440977]
[1756917469912,0.13431023,112200.0,112190.0,3.24100977]
[1756917470304,0.15041505,112200.0,112190.0,3.24100977]
[1756917470508,0.15041505,112200.0,112190.0,2.41440977]
[1756917470710,0.15041505,112200.0,112190.0,1.90431129]
[1756917471010,0.15041505,112200.0,112190.0,1.8858]
[1756917471011,0.76121505,112200.0,112190.0,1.8858]
[1756917471239,1.04657463,112200.0,112190.0,2.71516]
[1756917471409,1.15851391,112200.0,112190.0,2.71516]
[1756917471714,0.7932041,112200.0,112190.0,2.71516]
[1756917472917,0.7932041,112200.0,112190.0,2.71316]
[1756917473117,0.7932041,112200.0,112190.0,2.71416]
[1756917473412,0.76115297,112200.0,112190.0,2.71416]
[1756917474012,0.76115297,112200.0,112190.0,2.71116]
[1756917474322,0.76115297,112200.0,112190.0,2.71216]
[1756917474908,0.76115297,112200.0,112190.0,1.8858]
[1756917475216,0.76115297,112200.0,112190.0,2.71204]
[1756917476016,0.76115297,112200.0,112190.0,2.71104]
[1756917478109,0.76115297,112200.0,112190.0,2.71004]
[1756917479425,0.51115297,112200.0,112190.0,2.71004]
[1756917479918,0.15035297,112200.0,112190.0,3.07534981]
[1756917480118,0.13424815,112200.0,112190.0,3.32534981]
[1756917480318,0.05436,112200.0,112190.0,3.32534981]
[1756917480521,0.07097085,112200.0,112190.0,3.32534981]
[1756917480715,0.07097085,112200.0,112190.0,3.32510981]
[1756917481023,0.53118096,112200.0,112190.0,3.07506981]
[1756917481520,0.53118096,112200.0,112190.0,2.24910981]
[1756917481713,0.53118096,112200.0,112190.0,3.07486981]
[1756917482116,0.56323209,112200.0,112190.0,2.95444401]
[1756917483123,0.56323209,112200.0,112190.0,2.83401822]
[1756917483315,0.45129281,112200.0,112190.0,2.83401822]
[1756917483808,0.45129281,112200.0,112190.0,2.83365822]
[1756917484213,0.45129281,112200.0,112190.0,2.83357822]
[1756917484626,0.45129281,112200.0,112190.0,2.83353822]
[1756917484920,0.45129281,112200.0,112190.0,2.83349822]
[1756917485109,0.45129281,112200.0,112190.0,2.00825822]
[1756917485317,0.43468196,112200.0,112190.0,2.83337822]
[1756917485508,0.38032196,112200.0,112190.0,2.83337822]
[1756917485819,0.38032196,112200.0,112190.0,2.00825822]
[1756917486021,0.01952196,112200.0,112190.0,2.83333822]
[1756917486519,0.07388196,112200.0,112190.0,2.83333822]
[1756917487018,0.07388196,112200.0,112190.0,2.00825822]
[1756917487408,0.07388196,112200.0,112190.0,2.83341822]
[1756917487738,0.07388196,112200.0,112190.0,3.19421822]
[1756917488219,0.01952196,112200.0,112190.0,3.19421822]
[1756917488414,0.1312812,112200.0,112190.0,3.19421822]
[1756917489316,0.1312812,112200.0,112190.0,4.54014765]
[1756917489317,0.09935204,112200.0,112190.0,4.54014765]
[1756917489525,0.09935204,112200.0,112190.0,4.77404932]
[1756917489722,0.01952196,112200.0,112190.0,4.77404932]
[1756917490022,0.01952196,112200.0,112190.0,4.68493632]
[1756917490410,0.01952196,112200.0,112190.0,4.68593632]
[1756917490616,0.09935204,112200.0,112190.0,4.68593632]
[1756917491117,0.09935204,112200.0,112190.0,3.59076689]
[1756917491623,0.09935204,112200.0,112190.0,3.58976689]
[1756917491922,0.09935204,112200.0,112190.0,3.59276689]
[1756917492121,0.04791661,112200.0,112190.0,3.59276689]
[1756917492617,0.01952196,112200.0,112190.0,3.59176689]
[1756917492921,0.01952196,112200.0,112190.0,3.59376689]
[1756917493927,0.04792867,112200.0,112190.0,3.59376689]
[1756917494320,0.06745063,112200.0,112190.0,3.59376689]
[1756917494934,0.06745063,112200.0,112190.0,4.68969632]
[1756917495832,0.06745063,112200.0,112190.0,3.59376689]
[1756917496223,0.01952196,112200.0,112190.0,3.59376689]
[1756917496927,0.01952196,112200.0,112190.0,3.59284689]
[1756917498221,0.04793371,112200.0,112190.0,3.59284689]
[1756917498528,0.06745567,112200.0,112190.0,4.68877632]
[1756917500514,0.06745567,112200.0,112190.0,3.86477632]
[1756917500719,0.06745567,112200.0,112190.0,4.68777632]
[1756917503224,0.06745567,112200.0,112190.0,2.76884689]
[1756917503525,0.12404567,112200.0,112190.0,3.59160689]
[1756917504230,0.12318732,112200.0,112190.0,3.59160689]
[1756917504830,0.06659732,112200.0,112190.0,4.68753632]
[1756917506630,0.06659732,112200.0,112190.0,3.86477632]
[1756917506924,0.12318732,112200.0,112190.0,4.68693632]
[1756917507330,0.12318732,112200.0,112190.0,4.77604922]
[1756917507530,0.06659732,112200.0,112190.0,4.77604922]
[1756917507726,0.06659732,112200.0,112190.0,3.95388922]
[1756917507930,0.12318732,112200.0,112190.0,4.77604922]
[1756917508533,0.12318732,112200.0,112190.0,4.68693632]
[1756917509426,0.12318732,112200.0,112190.0,3.59100689]
[1756917509625,0.07525361,112200.0,112190.0,3.59100689]
[1756917510224,0.07525361,112200.0,112190.0,2.15353708]
[1756917510424,0.13914242,112200.0,112190.0,2.97565708]
[1756917510726,0.13914242,112200.0,112190.0,3.34096689]
[1756917510929,0.12047881,112200.0,112190.0,3.34096689]
[1756917511521,0.12047881,112200.0,112190.0,3.19617822]
[1756917513429,0.05659,112200.0,112190.0,3.19617822]
[1756917513632,0.1045657,112200.0,112190.0,3.19617822]
[1756917513822,0.12318505,112200.0,112190.0,3.19617822]
[1756917514222,0.07520935,112200.0,112190.0,3.19617822]
[1756917514426,0.01861935,112200.0,112190.0,3.28529112]
[1756917514625,0.01861935,112200.0,112190.0,3.19617822]
[1756917514825,0.07520935,112200.0,112190.0,3.19617822]
[1756917516830,0.07520935,112200.0,112190.0,3.34096689]
[1756917517427,0.07520935,112200.0,112190.0,2.51884689]
[1756917517729,0.07520935,112200.0,112190.0,3.34096689]
[1756917518334,0.32520935,112200.0,112190.0,0.87589848]
[1756917518526,0.85293943,112200.0,112190.0,0.89965631]
[1756917518853,0.88486859,112200.0,112190.0,0.89965631]
[1756917519046,0.88486859,112200.0,112190.0,0.07753631]
[1756917519234,0.14797,112190.0,112180.0,0.36985981]
[1756917519530,0.14797,112190.0,112170.0,2.6306959]
[1756917519531,0.16658935,112190.0,112170.0,2.6306959]
[1756917519831,0.0552,112180.0,112170.0,2.6305959]
[1756917520143,0.07381935,112180.0,112170.0,2.6305959]
[1756917520340,0.11917637,112180.0,112170.0,3.08740609]
[1756917520638,0.13779572,112180.0,112170.0,3.4527559]
[1756917521635,0.07381935,112180.0,112170.0,3.4527559]
[1756917521936,0.07381935,112180.0,112170.0,3.4537559]
[1756917522329,0.13874675,112180.0,112170.0,3.4537559]
[1756917522528,0.08948154,112180.0,112170.0,3.4537559]
[1756917523029,0.08948154,112180.0,112170.0,2.26628609]
[1756917523230,0.70028154,112180.0,112170.0,2.72764609]
[1756917523434,0.81204078,112180.0,112170.0,2.72768609]
[1756917523639,1.06559135,112180.0,112170.0,1.78503775]
[1756917523824,1.17740615,112180.0,112170.0,2.60723775]
[1756917524428,1.17740615,112180.0,112170.0,1.78503775]
[1756917524632,1.17740615,112180.0,112170.0,2.60723775]
[1756917525032,1.17740615,112180.0,112170.0,1.78503775]
[1756917525231,0.14797,112170.0,112160.0,0.00455]
[1756917525433,1.25977631,112170.0,112150.0,0.0001]
[1756917525637,1.25977631,112170.0,112130.0,2.63114819]
[1756917525638,0.14797,112150.0,112140.0,0.0001]
[1756917525840,0.24632845,112150.0,112140.0,0.8222]
[1756917526038,0.60712845,112150.0,112140.0,0.8222]
[1756917526426,0.60712845,112150.0,112130.0,2.27044819]
[1756917526632,0.0552,112140.0,112130.0,2.27034819]
[1756917526936,0.1349391,112140.0,112130.0,3.09258819]
[1756917527141,0.15355845,112140.0,112130.0,3.09258819]
[1756917527342,0.15355845,112140.0,112130.0,2.72727838]
[1756917527738,0.43461935,112140.0,112130.0,2.72727838]
[1756917527934,0.51435845,112140.0,112130.0,2.72727838]
[1756917528240,0.51435845,112140.0,112130.0,1.90503838]
[1756917528543,0.43461935,112140.0,112130.0,2.72731838]
[1756917528931,0.43561935,112140.0,112130.0,2.73631838]
[1756917529131,0.43561935,112140.0,112130.0,2.7152]
[1756917529640,0.43561935,112140.0,112130.0,3.08105533]
[1756917530339,0.49920221,112140.0,112130.0,3.08105533]
[1756917530837,0.5696716,112140.0,112130.0,3.08105533]
[1756917532132,0.55375896,112140.0,112130.0,3.08105533]
[1756917533034,0.55375896,112140.0,112130.0,2.7152]
[1756917533237,0.50608874,112140.0,112130.0,3.08105533]
[1756917535337,0.50608874,112140.0,112130.0,1.89292]
[1756917535538,0.50608874,112140.0,112130.0,2.71536]
[1756917535842,0.50608874,112140.0,112130.0,1.89292]
[1756917536044,0.50608874,112140.0,112130.0,2.71536]
[1756917536643,1.16961429,112140.0,112130.0,1.89292]
[1756917536939,1.18552693,112140.0,112130.0,1.89292]
[1756917537154,1.20025092,112140.0,112130.0,2.71536]
[1756917537951,1.22843806,112140.0,112120.0,0.0001]
[1756917538142,0.14797,112120.0,112110.0,0.0001]
[1756917538455,0.57500236,112120.0,112110.0,0.63944]
[1756917538634,0.52738935,112120.0,112110.0,0.63944]
[1756917540235,0.52738935,112120.0,112110.0,0.64144]
[1756917540742,0.52738935,112120.0,112110.0,0.64244]
[1756917541339,0.52738935,112120.0,112110.0,0.82556]
[1756917541536,0.57500236,112120.0,112110.0,0.003]
[1756917541745,1.14324468,112120.0,112110.0,0.82556]
[1756917542646,0.82498996,112120.0,112110.0,0.82556]
[1756917545445,0.52738935,112120.0,112110.0,1.19141533]
[1756917545644,0.59088041,112120.0,112110.0,1.19141533]
[1756917545944,0.59088041,112120.0,112110.0,1.44141533]
[1756917546148,0.59088041,112120.0,112110.0,1.44165533]
[1756917547161,0.59088041,112120.0,112110.0,1.0758]
[1756917547367,0.13731041,112120.0,112110.0,1.80245533]
[1756917547565,0.07381935,112120.0,112110.0,1.80245533]
[1756917548154,0.06349106,112120.0,112110.0,2.90002132]
[1756917548354,0.04769503,112120.0,112110.0,2.98919782]
[1756917548650,0.04769503,112120.0,112110.0,2.90002132]
[1756917548856,0.06631438,112120.0,112110.0,2.98919782]
[1756917549061,0.04769503,112120.0,112110.0,2.98919782]
[1756917549269,0.06631438,112120.0,112110.0,2.98919782]
[1756917549767,0.04769503,112120.0,112110.0,2.98919782]
[1756917549963,0.06631438,112120.0,112110.0,2.98919782]
[1756917550761,0.04769503,112120.0,112110.0,2.98919782]
[1756917550958,0.04769503,112120.0,112110.0,2.99019782]
[1756917550959,0.06631438,112120.0,112110.0,2.99019782]
[1756917551275,0.04769503,112120.0,112110.0,2.99015782]
[1756917551468,0.04769503,112120.0,112110.0,2.07722132]
[1756917551663,0.06631438,112120.0,112110.0,2.90086132]
[1756917551964,0.04769503,112120.0,112110.0,2.90086132]
[1756917552162,0.06631438,112120.0,112110.0,2.90086132]
[1756917552366,0.01861935,112120.0,112110.0,2.90086132]
[1756917553068,0.13723041,112130.0,112110.0,2.90086132]
[1756917553262,0.16452935,112130.0,112120.0,0.36585533]
[1756917553666,0.16452935,112130.0,112110.0,0.3639]
[1756917553972,0.11880598,112120.0,112110.0,0.3638]
[1756917554163,0.13742533,112120.0,112110.0,1.18708]
[1756917554565,0.13742533,112120.0,112110.0,1.18664]
[1756917554869,0.13742533,112120.0,112110.0,1.18756]
[1756917555084,0.13742533,112120.0,112110.0,2.65543132]
[1756917555270,0.13742533,112120.0,112110.0,2.91859132]
[1756917555474,0.13742533,112120.0,112110.0,2.91851132]
[1756917555668,0.22831533,112120.0,112110.0,0.99630533]
[1756917555874,0.22831533,112120.0,112110.0,1.82086533]
[1756917556070,0.13742533,112120.0,112110.0,2.91843132]
[1756917556260,0.13742533,112120.0,112110.0,2.92043132]
[1756917556470,0.08240533,112120.0,112110.0,3.00960782]
[1756917556770,0.06378598,112120.0,112110.0,3.00960782]
[1756917556966,0.08240533,112120.0,112110.0,3.00960782]
[1756917557161,0.11880598,112120.0,112110.0,3.00960782]
[1756917557363,0.13742533,112120.0,112110.0,3.00960782]
[1756917557971,0.08240533,112120.0,112110.0,3.00960782]
[1756917558270,0.06378598,112120.0,112110.0,3.25960782]
[1756917558469,0.08240533,112120.0,112110.0,3.25960782]
[1756917558667,0.06378598,112120.0,112110.0,3.25960782]
[1756917558860,0.08240533,112120.0,112110.0,2.43604782]
[1756917559065,0.06378598,112120.0,112110.0,3.25960782]
[1756917559263,0.08240533,112120.0,112110.0,3.25960782]
[1756917559666,0.06378598,112120.0,112110.0,3.25960782]
[1756917559867,0.08240533,112120.0,112110.0,3.25960782]
[1756917560066,0.20969598,112120.0,112110.0,2.34687132]
[1756917560274,0.22831533,112120.0,112110.0,2.07286533]
[1756917560571,0.22831533,112120.0,112110.0,3.17043132]
[1756917560871,0.22895585,112120.0,112110.0,3.25960782]
[1756917561172,0.13806585,112120.0,112110.0,3.25960782]
[1756917561473,0.08304585,112120.0,112110.0,3.25960782]
[1756917563575,0.13806585,112120.0,112110.0,3.25960782]
[1756917565374,0.13806585,112120.0,112110.0,3.25892782]
[1756917565779,0.13806585,112120.0,112110.0,2.43604782]
[1756917566075,0.13806585,112120.0,112110.0,3.25884782]
[1756917566677,0.08304585,112120.0,112110.0,3.25884782]
[1756917567393,0.12218324,112120.0,112110.0,3.25884782]
[1756917568381,0.06716324,112120.0,112110.0,3.25884782]
[1756917569874,0.12218324,112120.0,112110.0,3.25884782]
[1756917571979,0.07427987,112120.0,112110.0,3.25884782]
[1756917572180,0.13806585,112120.0,112110.0,3.25884782]
[1756917572381,0.07427987,112120.0,112110.0,3.25884782]
[1756917572573,0.13806585,112120.0,112110.0,3.25884782]
[1756917573078,0.07427987,112120.0,112110.0,3.25884782]
[1756917575687,0.05502,112120.0,112110.0,3.25884782]
[1756917575889,0.07428047,112120.0,112110.0,3.25884782]
[1756917576191,0.07428047,112120.0,112110.0,5.14388782]
[1756917576489,0.13806645,112120.0,112110.0,5.14388782]
[1756917577382,0.08304645,112120.0,112110.0,5.14388782]
[1756917577881,0.13806645,112120.0,112110.0,5.14388782]
[1756917578784,0.13806645,112120.0,112110.0,4.32108782]
[1756917578985,0.13806645,112120.0,112110.0,5.05463132]
[1756917579483,0.13806645,112120.0,112110.0,4.23191132]
[1756917579785,0.13806645,112120.0,112110.0,5.05463132]
[1756917580387,0.13806645,112120.0,112110.0,5.14380782]
[1756917581183,0.07428047,112120.0,112110.0,5.14380782]
[1756917581987,0.06731361,112120.0,112110.0,5.14380782]
[1756917582284,0.04805314,112120.0,112110.0,5.14380782]
[1756917582491,0.06731361,112120.0,112110.0,5.14380782]
[1756917582989,0.04805314,112120.0,112110.0,5.14380782]
[1756917583285,0.06731361,112120.0,112110.0,5.14380782]
[1756917583492,0.09754314,112120.0,112110.0,5.14380782]
[1756917583687,0.11680361,112120.0,112110.0,5.14380782]
[1756917585988,0.11680361,112120.0,112110.0,4.23191132]
[1756917586194,0.11680361,112120.0,112110.0,5.05459132]
[1756917586396,0.11680361,112120.0,112110.0,5.14376782]
[1756917586996,0.11680361,112120.0,112110.0,5.14372782]
[1756917590992,0.06875047,112120.0,112110.0,5.14372782]
[1756917591598,0.06875047,112120.0,112110.0,5.1436371]
[1756917592094,0.11327598,112120.0,112110.0,5.1436371]
[1756917592398,0.13253645,112120.0,112110.0,5.1436371]
[1756917593693,0.06875047,112120.0,112110.0,5.1436371]
[1756917594395,0.06875047,112120.0,112110.0,4.3209971]
[1756917594696,0.06875047,112120.0,112110.0,5.1435971]
[1756917595300,0.13253645,112120.0,112110.0,5.1435971]
[1756917596004,0.06875047,112120.0,112110.0,5.1435971]
[1756917596701,0.65875047,112120.0,112110.0,1.89249]
[1756917597003,1.08333645,112120.0,112110.0,3.08092265]
[1756917597296,0.72253645,112120.0,112110.0,3.07647265]
[1756917597494,0.72253645,112120.0,112110.0,3.43727265]
[1756917598201,0.70327598,112120.0,112110.0,3.43727265]
[1756917598396,0.72277358,112120.0,112110.0,3.43727265]
[1756917599201,0.47277358,112120.0,112110.0,3.43727265]
[1756917600502,0.47277358,112120.0,112110.0,3.07144]
[1756917600699,1.0197876,112120.0,112110.0,1.88804]
[1756917600900,1.46535935,112120.0,112110.0,1.88804]
[1756917601097,1.38562025,112120.0,112110.0,2.71064]
[1756917601297,1.46535935,112120.0,112110.0,2.70764]
[1756917601497,1.46535935,112120.0,112110.0,2.66243278]
[1756917602801,1.46535935,112120.0,112110.0,1.7675179]
[1756917603104,0.1383,112110.0,112100.0,0.0001]
[1756917603305,1.35606609,112110.0,112100.0,0.8226]
[1756917603507,1.60606609,112110.0,112100.0,0.8226]
[1756917604508,1.60606609,112110.0,112100.0,0.8246]
[1756917605105,1.24023344,112110.0,112100.0,0.8246]
[1756917605306,1.1285976,112110.0,112100.0,0.8246]
[1756917606306,1.22219168,112110.0,112100.0,0.8246]
[1756917606608,1.22219168,112110.0,112100.0,0.8266]
[1756917609207,1.14245832,112110.0,112100.0,0.8266]
[1756917610913,1.20618854,112110.0,112100.0,0.8266]
[1756917611413,1.20618854,112110.0,112100.0,0.82668]
[1756917612010,1.14245832,112110.0,112100.0,0.82668]
[1756917615204,1.14245832,112110.0,112100.0,0.82672]
[1756917615411,1.50829097,112110.0,112100.0,0.82672]
[1756917616019,1.14245832,112110.0,112100.0,0.82672]
[1756917616417,1.14245832,112110.0,112100.0,0.004]
[1756917616612,1.14245832,112110.0,112100.0,0.82668]
[1756917617005,1.57200749,112110.0,112090.0,0.0001]
[1756917617213,0.13727,112090.0,112080.0,0.0001]
[1756917617412,1.23340025,112090.0,112080.0,0.82268]
[1756917617615,0.05284,112080.0,112070.0,1.88964]
[1756917617810,0.05284,112080.0,112070.0,2.70776]
[1756917617811,0.78735051,112080.0,112070.0,2.70776]
[1756917618017,0.80684811,112080.0,112070.0,1.88508]
[1756917618317,0.8104301,112080.0,112070.0,2.70776]
[1756917618922,0.8064301,112080.0,112070.0,2.70776]
[1756917619220,0.8064301,112080.0,112070.0,2.71222]
[1756917619415,0.8074301,112080.0,112070.0,2.71722]
[1756917619613,0.8074301,112080.0,112070.0,1.89454]
[1756917619823,0.8074301,112080.0,112070.0,2.72122]
[1756917620216,2.67753158,112080.0,112070.0,0.01346]
[1756917620420,0.13727,112070.0,112060.0,0.13802]
[1756917620617,1.26340025,112070.0,112060.0,0.13792]
[1756917620816,1.26698277,112070.0,112060.0,0.13792]
[1756917621419,1.33066338,112070.0,112060.0,0.13792]
[1756917622016,1.33566338,112070.0,112060.0,0.13892]
[1756917622324,1.27198277,112070.0,112060.0,0.001]
[1756917622528,1.33562698,112070.0,112060.0,0.82376]
[1756917622718,1.33662698,112070.0,112060.0,0.82376]
[1756917623626,1.33662698,112070.0,112060.0,0.001]
[1756917624017,1.27298277,112070.0,112060.0,0.001]
[1756917624825,1.35271613,112070.0,112060.0,0.001]
[1756917625225,0.98688348,112070.0,112060.0,0.001]
[1756917626427,1.35271613,112070.0,112060.0,0.001]
[1756917627426,1.35271613,112070.0,112050.0,0.82286]
[1756917627628,0.49807,112060.0,112050.0,0.82276]
[1756917627823,0.05284,112050.0,112040.0,0.38703583]
[1756917628036,0.93172885,112050.0,112040.0,0.38693583]
[1756917628231,0.8875676,112050.0,112040.0,0.27110318]
[1756917628528,0.13727,112040.0,112030.0,0.82294]
[1756917628730,1.28297029,112040.0,112030.0,0.82284]
[1756917628930,1.20579012,112040.0,112030.0,0.82284]
[1756917629133,1.28536016,112040.0,112030.0,0.82284]
[1756917629431,1.31742596,112040.0,112030.0,0.82284]
[1756917629821,1.31742596,112040.0,112020.0,1.88574]
[1756917630031,0.49319823,112030.0,112020.0,1.88564]
[1756917630231,0.83069583,112030.0,112020.0,2.70852]
[1756917630728,0.84345423,112030.0,112020.0,1.88564]
[1756917630929,0.83069583,112030.0,112020.0,2.70856]
[1756917631138,0.83069583,112030.0,112020.0,1.88564]
[1756917631332,1.2262679,112030.0,112020.0,2.70856]
[1756917632122,1.2262679,112030.0,112020.0,2.71056]
[1756917632123,1.20930021,112030.0,112020.0,2.71056]
[1756917632324,0.84346756,112030.0,112020.0,2.71056]
[1756917632636,0.84346756,112030.0,112020.0,0.002]
[1756917632637,0.92789756,112030.0,112020.0,0.002]
[1756917632830,1.29373021,112030.0,112010.0,0.8231]
[1756917633130,0.49807,112020.0,112010.0,0.823]
[1756917633328,1.24340025,112020.0,112010.0,0.823]
[1756917633929,0.8775676,112020.0,112010.0,0.823]
[1756917634235,0.8775676,112020.0,112010.0,0.825]
[1756917635032,0.8795676,112020.0,112010.0,0.825]
[1756917635834,1.01303182,112020.0,112010.0,0.825]
[1756917636032,1.37886447,112020.0,112010.0,0.00204]
[1756917636238,1.37886447,112020.0,112010.0,0.82508]
[1756917636823,1.01303182,112020.0,112010.0,0.82508]
[1756917637028,1.37886447,112020.0,112010.0,0.82508]
[1756917637339,1.01303182,112020.0,112010.0,0.82508]
[1756917637640,1.37886447,112020.0,112010.0,0.82508]
[1756917639542,1.01303182,112020.0,112010.0,0.82508]
[1756917640244,1.01303182,112020.0,112010.0,0.00204]
[1756917640443,1.01303182,112020.0,112010.0,0.82572]
[1756917642150,1.37886447,112020.0,112010.0,0.82572]
[1756917642643,1.01303182,112020.0,112010.0,0.82572]
[1756917644142,0.94944128,112020.0,112010.0,0.82572]
[1756917644438,1.02899951,112020.0,112010.0,0.82572]
[1756917644635,0.94944128,112020.0,112010.0,0.82572]
[1756917645443,1.02899951,112020.0,112010.0,0.82572]
[1756917646843,0.94944128,112020.0,112010.0,0.82572]
[1756917647240,1.02899951,112020.0,112010.0,0.82572]
[1756917647444,0.50194128,112020.0,112010.0,1.44155265]
[1756917647644,0.56551681,112020.0,112010.0,1.44155265]
[1756917647843,0.86274128,112020.0,112010.0,1.44155265]
[1756917648044,0.92631681,112020.0,112010.0,1.44155265]
[1756917648734,0.92631681,112020.0,112010.0,1.07572]
[1756917648934,0.92631681,112020.0,112010.0,1.44155265]
[1756917649234,0.56551681,112020.0,112010.0,1.44155265]
[1756917650842,0.64745681,112020.0,112010.0,1.44115265]
[1756917651050,0.64745681,112020.0,112010.0,0.61787265]
[1756917651248,0.64745681,112020.0,112010.0,1.44115265]
[1756917651444,0.64745681,112020.0,112010.0,1.07532]
[1756917651650,0.64745681,112020.0,112010.0,1.44193497]
[1756917651846,0.64745681,112020.0,112010.0,0.61865497]
[1756917652039,0.58388128,112020.0,112010.0,1.44193497]
[1756917652237,0.66343951,112020.0,112010.0,1.44193497]
[1756917652639,0.66343951,112020.0,112010.0,1.07532]
[1756917652840,0.66343951,112020.0,112010.0,1.44193497]
[1756917653345,0.50194128,112020.0,112010.0,1.44193497]
[1756917653645,0.56565618,112020.0,112010.0,1.53119107]
[1756917653846,0.56565618,112020.0,112010.0,1.44193497]
[1756917654040,0.64759618,112020.0,112010.0,1.44193497]
[1756917654341,0.58388128,112020.0,112010.0,1.44193497]
[1756917655043,0.58342433,112020.0,112010.0,1.44193497]
[1756917655246,0.66298256,112020.0,112010.0,1.44193497]
[1756917655449,0.66298256,112020.0,112010.0,0.00204]
[1756917655639,0.66298256,112020.0,112010.0,0.82528]
[1756917656040,0.66298256,112020.0,112010.0,1.19189497]
[1756917662154,0.69506017,112020.0,112010.0,1.11952666]
[1756917666056,0.69506017,112020.0,112010.0,0.36661497]
[1756917666254,0.13251,112010.0,112000.0,0.38711593]
[1756917666555,0.94622351,112010.0,112000.0,0.84356096]
[1756917666851,0.88235065,112010.0,112000.0,0.84356096]
[1756917667054,0.88235065,112010.0,112000.0,1.21017593]
[1756917667252,0.99398649,112010.0,112000.0,0.84356096]
[1756917667751,0.99398649,112010.0,112000.0,0.84556096]
[1756917668241,0.99598649,112010.0,112000.0,0.84556096]
[1756917668446,0.88435065,112010.0,112000.0,0.84556096]
[1756917669250,0.88435065,112010.0,112000.0,0.02240096]
[1756917669452,0.88435065,112010.0,112000.0,0.84556096]
[1756917669870,0.88435065,112010.0,112000.0,1.21217593]
[1756917670053,0.99598649,112010.0,112000.0,1.21217593]
[1756917672053,0.94823734,112010.0,112000.0,1.21217593]
[1756917672359,0.58707547,112010.0,112000.0,1.21217593]
[1756917672554,0.58707547,112010.0,112000.0,0.84556096]
[1756917672756,0.58707547,112010.0,112000.0,1.21217593]
[1756917674454,0.58707547,112010.0,112000.0,0.84556096]
[1756917674658,0.58707547,112010.0,112000.0,1.21217593]
[1756917676566,0.58707547,112010.0,112000.0,0.38901593]
[1756917676759,0.58707547,112010.0,112000.0,1.21221593]
[1756917677562,0.52318878,112010.0,112000.0,1.21221593]
[1756917677860,0.88398878,112010.0,112000.0,1.21221593]
[1756917678458,0.52318878,112010.0,112000.0,1.21221593]
[1756917680460,0.52318878,112010.0,112000.0,0.84560096]
[1756917680661,0.88398878,112010.0,112000.0,1.21221593]
[1756917680856,1.25060375,112010.0,112000.0,0.002]
[1756917681062,0.94787547,112010.0,112000.0,0.82516]
[1756917681261,0.96384714,112010.0,112000.0,0.82516]
[1756917681461,1.21384714,112010.0,112000.0,0.82516]
[1756917686570,1.23535217,112010.0,112000.0,0.82516]
[1756917686770,1.21935324,112010.0,112000.0,0.82516]
[1756917688768,0.94784821,112010.0,112000.0,0.82516]
[1756917689875,0.58704821,112010.0,112000.0,1.2125488]
[1756917690075,0.21704821,112010.0,112000.0,1.5733488]
[1756917690375,0.21704821,112010.0,111990.0,0.0001]
[1756917690376,0.13027,112000.0,111990.0,0.0001]
[1756917690575,0.04744,111990.0,111980.0,1.89088]
[1756917690875,0.87100434,111990.0,111980.0,2.66117665]
[1756917691073,1.23761931,111990.0,111980.0,1.83805665]
[1756917691368,1.23761931,111990.0,111980.0,2.66117665]
[1756917691670,1.34925515,111990.0,111980.0,2.66117665]
[1756917691967,1.42999592,111990.0,111980.0,2.66563665]
[1756917692168,1.42999592,111990.0,111980.0,1.84251665]
[1756917692372,1.30238143,111990.0,111980.0,2.66563665]
[1756917692672,1.30238143,111990.0,111980.0,2.66567665]
[1756917692868,1.30238143,111990.0,111980.0,1.84251665]
[1756917693171,1.30238143,111990.0,111980.0,2.66567665]
[1756917693370,0.93576646,111990.0,111980.0,2.66121665]
[1756917693574,0.93476646,111990.0,111980.0,2.66121665]
[1756917693774,0.94276646,111990.0,111980.0,2.66221665]
[1756917694071,0.8086809,111990.0,111980.0,3.02883162]
[1756917694275,0.74491878,111990.0,111980.0,3.02883162]
[1756917694872,0.74491878,111990.0,111980.0,2.20567162]
[1756917695073,0.74491878,111990.0,111980.0,3.02887162]
[1756917695375,0.74491878,111990.0,111980.0,2.66225665]
[1756917695576,0.74491878,111990.0,111980.0,3.02887162]
[1756917695775,0.74491878,111990.0,111980.0,3.27887162]
[1756917695964,0.5086809,111990.0,111980.0,3.27887162]
[1756917696165,0.0904409,111990.0,111980.0,3.63967162]
[1756917696476,0.07449459,111990.0,111980.0,3.72895162]
[1756917697981,0.07449459,111990.0,111980.0,2.90575162]
[1756917698179,0.12193459,111990.0,111980.0,2.81647162]
[1756917698481,0.12193459,111990.0,111980.0,3.27887162]
[1756917699581,0.12193459,111990.0,111980.0,2.45567162]
[1756917699879,0.12193459,111990.0,111980.0,3.36815162]
[1756917700081,0.07449459,111990.0,111980.0,3.72895162]
[1756917700584,0.81081375,111990.0,111980.0,1.83905665]
[1756917700778,0.80499878,111990.0,111980.0,1.83905665]
[1756917700976,1.23537587,111990.0,111980.0,2.66221665]
[1756917701282,0.8687609,111990.0,111980.0,2.66221665]
[1756917701484,0.8687609,111990.0,111980.0,1.83905665]
[1756917701682,0.8687609,111990.0,111980.0,2.66221665]
[1756917701878,0.8687609,111990.0,111980.0,1.83905665]
[1756917702178,0.80499878,111990.0,111980.0,1.83905665]
[1756917702583,0.80499878,111990.0,111980.0,2.66221665]
[1756917703680,0.8687609,111990.0,111980.0,2.66221665]
[1756917708000,0.8687609,111990.0,111980.0,1.83905665]
[1756917708207,0.8687609,111990.0,111980.0,2.66221665]
[1756917708907,0.8687609,111990.0,111980.0,1.83905665]
[1756917709101,1.17161375,111990.0,111980.0,1.83905665]
[1756917709307,1.38501093,111990.0,111980.0,2.66221665]
[1756917709907,1.01839596,111990.0,111980.0,2.66221665]
[1756917710809,0.93865519,111990.0,111980.0,2.66221665]
[1756917711709,0.93865519,111990.0,111980.0,3.02883162]
[1756917712010,0.49199815,111990.0,111980.0,3.63963162]
[1756917712206,0.09040837,111990.0,111980.0,3.63963162]
[1756917713211,0.02667878,111990.0,111980.0,3.63963162]
[1756917713612,0.04667878,111990.0,111980.0,3.63976959]
[1756917714406,0.02667878,111990.0,111980.0,3.63976959]
[1756917714797,0.02667878,111990.0,111980.0,4.85032225]
[1756917714999,0.07175775,111990.0,111980.0,4.85032225]
[1756917715210,0.09043653,111990.0,111980.0,4.85032225]
[1756917715410,1.47443527,111990.0,111980.0,0.82416]
[1756917715611,1.47443527,111990.0,111980.0,0.77589879]
[1756917715612,1.10768233,111990.0,111980.0,0.77589879]
[1756917715903,1.02794156,111990.0,111980.0,0.77589879]
[1756917716302,1.10768233,111990.0,111980.0,0.77589879]
[1756917718511,1.10768233,111990.0,111980.0,0.82316]
[1756917721210,0.74688233,111990.0,111980.0,0.82316]